bitfinex-derivatives/quotes_ETHF0:USTF0_20250501
["timestamp","ask_amount","ask_price","bid_price","bid_amount"]
[1746088598578,2.83351934,1818.2,1818.1,1.6267]
[1746088599281,1.09988,1818.1,1818.0,6.9958]
[1746088599476,2.83351934,1818.1,1818.0,6.9958]
[1746088600185,6.72551934,1818.1,1818.0,6.9958]
[1746088609283,1.09994,1818.0,1817.9,3.788]
[1746088609480,3.53494,1818.0,1817.9,3.788]
[1746088609682,3.63497934,1818.0,1817.9,3.788]
[1746088618294,1.10018,1817.6,1817.5,4.9337]
[1746088618496,1.20021934,1817.6,1817.5,4.9337]
[1746088618691,1.1003,1817.4,1817.3,10.7637]
[1746088618889,5.09233934,1817.4,1817.3,7.5559]
[1746088619285,5.09233934,1817.4,1817.3,9.618]
[1746088619492,6.83093934,1817.4,1817.3,9.618]
[1746088619685,7.02716969,1817.4,1817.3,9.618]
[1746088619891,6.83093934,1817.4,1817.3,9.618]
[1746088620097,7.02467801,1817.4,1817.3,9.618]
[1746088620295,6.83093934,1817.4,1817.3,9.618]
[1746088621398,6.83093934,1817.4,1817.3,3.788]
[1746088621691,2.93893934,1817.4,1817.3,3.788]
[1746088621997,6.75393934,1817.4,1817.3,3.788]
[1746088622491,2.93893934,1817.4,1817.3,3.788]
[1746088622797,6.75393934,1817.4,1817.3,3.788]
[1746088623190,1.10042,1817.2,1817.1,0.8625]
[1746088623484,1.20045934,1817.2,1817.1,0.8625]
[1746088624895,1.20045934,1817.2,1817.1,1.7177]
[1746088625395,1.10048,1817.1,1817.0,3.788]
[1746088625594,5.01651934,1817.1,1817.0,5.4216]
[1746088625790,4.91648,1817.1,1817.0,5.4216]
[1746088625995,4.91648,1817.1,1817.0,10.4216]
[1746088626598,5.50198,1817.3,1817.0,10.4216]
[1746088626599,3.2078,1817.4,1817.0,11.52213]
[1746088626898,4.91641,1817.3,1817.1,4.8414]
[1746088627092,4.91641,1817.3,1817.2,2.4567]
[1746088627293,1.10041,1817.3,1817.2,2.4567]
[1746088628297,1.10041,1817.3,1817.2,6.2447]
[1746088628590,1.20044934,1817.3,1817.2,6.2447]
[1746088629793,1.10041,1817.3,1817.2,6.2447]
[1746088633597,1.20044934,1817.3,1817.2,6.2447]
[1746088636000,2.82494934,1817.3,1817.2,6.2447]
[1746088636795,1.20044934,1817.3,1817.2,6.2447]
[1746088638993,1.20044934,1817.3,1817.2,3.788]
[1746088639199,2.86324934,1817.3,1817.2,3.788]
[1746088639903,5.01644934,1817.3,1817.2,5.4706]
[1746088640405,5.01644934,1817.3,1817.2,1.6826]
[1746088641108,5.01644934,1817.3,1817.2,5.4706]
[1746088642906,1.10041,1817.3,1817.2,5.4706]
[1746088644108,2.93014934,1817.3,1817.2,1.6826]
[1746088644309,2.93014934,1817.3,1816.9,0.8387]
[1746088644310,2.75111,1817.2,1816.9,0.8387]
[1746088644610,1.20058934,1817.0,1816.9,2.408]
[1746088644910,0.10003934,1817.0,1816.3,3.2078]
[1746088645104,1.10085,1816.5,1816.4,1.5693]
[1746088645503,1.10083,1816.6,1816.4,6.5693]
[1746088645700,1.10083,1816.6,1816.5,1.5693]
[1746088646100,1.10083,1816.6,1816.5,8.5651]
[1746088646407,3.816,1816.7,1816.5,14.66593]
[1746088646608,4.91675,1816.7,1816.6,3.4141]
[1746088647907,1.10075,1816.7,1816.6,3.4141]
[1746088648803,2.71635,1816.7,1816.6,2.6049]
[1746088650104,2.81638934,1816.7,1816.6,1.7387]
[1746088650311,1.10079,1816.6,1816.5,3.788]
[1746088650511,2.82622934,1816.6,1816.5,3.788]
[1746088650805,3.64222934,1816.6,1816.5,3.788]
[1746088651909,4.97582934,1816.6,1816.5,3.788]
[1746088652211,6.60122934,1816.6,1816.5,3.788]
[1746088655810,6.60222934,1816.6,1816.5,3.788]
[1746088659818,4.97682934,1816.6,1816.5,3.788]
[1746088660514,4.97682934,1816.6,1816.5,5.4652]
[1746088661816,1.20082934,1816.6,1816.5,5.4652]
[1746088662115,4.97682934,1816.6,1816.5,5.4652]
[1746088662816,6.57292934,1816.6,1816.5,5.4652]
[1746088663016,2.79692934,1816.6,1816.5,5.4652]
[1746088663316,6.57292934,1816.6,1816.5,5.4652]
[1746088663516,6.57292934,1816.6,1816.5,3.788]
[1746088667720,6.57292934,1816.6,1816.5,3.1322]
[1746088668020,6.57292934,1816.6,1816.5,0.37857761]
[1746088669217,9.78072934,1816.6,1816.5,0.37857761]
[1746088669617,6.57292934,1816.6,1816.5,0.37857761]
[1746088671018,1.20082934,1816.6,1816.5,0.37857761]
[1746088671217,4.97682934,1816.6,1816.5,0.37857761]
[1746088671417,4.87679,1816.6,1816.5,0.37857761]
[1746088672123,4.87679,1816.6,1816.5,2.87027761]
[1746088672518,8.71129,1816.8,1816.5,2.87027761]
[1746088672519,2.7517,1816.8,1816.5,7.87027761]
[1746088672717,4.87673,1816.7,1816.6,1.6253]
[1746088673120,1.10079,1816.6,1816.5,0.37857761]
[1746088674123,1.10079,1816.6,1816.5,2.07427761]
[1746088676222,2.68479,1816.6,1816.5,2.07427761]
[1746088676428,2.78482934,1816.6,1816.5,2.07427761]
[1746088676626,3.65442934,1816.6,1816.5,2.07427761]
[1746088677529,1.10079,1816.6,1816.5,2.07427761]
[1746088679229,1.10079,1816.6,1816.5,2.86467761]
[1746088679823,2.68569,1816.6,1816.5,2.07427761]
[1746088680025,3.52429,1816.6,1816.5,2.07427761]
[1746088680223,3.62432934,1816.6,1816.5,0.37857761]
[1746088686026,3.62432934,1816.6,1816.0,0.8246]
[1746088686027,1.10109,1816.1,1816.0,0.8246]
[1746088686226,1.10109,1816.1,1816.0,1.7351]
[1746088686931,2.67369,1816.1,1816.0,1.7351]
[1746088687125,2.67369,1816.1,1816.0,5.5231]
[1746088687626,1.10109,1816.1,1816.0,5.5231]
[1746088691435,4.85809,1816.1,1816.0,5.5231]
[1746088692227,4.95812934,1816.1,1816.0,5.5231]
[1746088694432,4.95812934,1816.1,1816.0,3.788]
[1746088695535,8.16592934,1816.1,1816.0,3.788]
[1746088696239,1.10127,1815.8,1815.7,1.5992]
[1746088696431,4.85827,1815.8,1815.7,1.5992]
[1746088697339,4.85827,1815.8,1815.7,5.3872]
[1746088704834,6.47297,1815.8,1815.7,5.3872]
[1746088705841,6.57300934,1815.8,1815.7,5.3872]
[1746088707839,4.95830934,1815.8,1815.7,5.3872]
[1746088708044,4.85827,1815.8,1815.7,5.3872]
[1746088709138,4.95830934,1815.8,1815.7,5.3872]
[1746088709334,4.85827,1815.8,1815.7,5.3872]
[1746088709538,4.95830934,1815.8,1815.7,5.3872]
[1746088710638,4.85827,1815.8,1815.7,5.3872]
[1746088711243,1.10127,1815.8,1815.7,5.3872]
[1746088719052,1.10106,1816.2,1816.0,1.10113]
[1746088719351,1.10094,1816.4,1816.2,1.10103]
[1746088719552,1.10094,1816.4,1816.3,4.9252]
[1746088719952,17.71069564,1816.5,1816.3,4.9252]
[1746088720152,17.81073498,1816.5,1816.4,1.7174]
[1746088720946,20.33663498,1816.5,1816.4,1.7174]
[1746088721147,20.33663498,1816.5,1816.4,5.5054]
[1746088721350,14.00769564,1816.5,1816.4,5.5054]
[1746088723159,1.10083,1816.6,1816.4,6.60631]
[1746088723458,9.92311499,1816.7,1816.5,2.5726]
[1746088723656,9.73291934,1816.7,1816.6,1.7143]
[1746088725953,6.52511934,1816.7,1816.6,1.7143]
[1746088730358,6.42508,1816.7,1816.6,1.7143]
[1746088730551,6.52511934,1816.7,1816.6,1.7143]
[1746088732460,1.10079,1816.6,1816.5,3.788]
[1746088732658,2.90102934,1816.6,1816.5,3.788]
[1746088732859,2.80099,1816.6,1816.5,3.788]
[1746088733461,2.80099,1816.6,1816.5,8.6917]
[1746088736263,1.10079,1816.6,1816.5,8.6917]
[1746088737765,1.10067,1816.8,1816.7,1.10071]
[1746088737964,1.10067,1816.8,1816.7,4.30851]
[1746088738163,1.10067,1816.8,1816.7,47.7958]
[1746088738365,1.10067,1816.8,1816.7,49.3921]
[1746088738566,2.75407,1816.8,1816.7,49.3921]
[1746088743767,2.75407,1816.8,1816.7,47.7958]
[1746088744066,2.85410934,1816.8,1816.7,6.9958]
[1746088744256,2.85410934,1816.8,1816.7,3.788]
[1746088748269,6.52310934,1816.8,1816.7,3.788]
[1746088748563,2.85410934,1816.8,1816.7,3.788]
[1746088748764,6.52310934,1816.8,1816.7,3.788]
[1746088749063,6.52310934,1816.8,1816.7,4.6087]
[1746088749265,3.2078,1817.1,1816.7,10.70941]
[1746088749565,6.4201,1817.2,1816.8,1.6567]
[1746088749771,1.10061,1816.9,1816.8,1.6567]
[1746088750162,1.10059,1817.0,1816.8,10.4447]
[1746088750363,1.10059,1817.0,1816.9,1.6472]
[1746088751168,1.10059,1817.0,1816.9,5.4352]
[1746088753862,2.68939,1817.0,1816.9,5.4352]
[1746088754576,1.10059,1817.0,1816.9,5.4352]
[1746088755976,2.78942934,1817.0,1816.9,3.788]
[1746088761282,2.78942934,1817.0,1816.9,5.4023]
[1746088761283,6.45742934,1817.0,1816.9,5.4023]
[1746088761486,2.78942934,1817.0,1816.9,5.4023]
[1746088761782,4.86862934,1817.0,1816.9,6.1895]
[1746088767298,4.86862934,1817.0,1816.9,3.788]
[1746088767595,6.43952934,1817.0,1816.9,3.788]
[1746088768695,11.43952934,1817.0,1816.9,3.788]
[1746088768892,11.43952934,1817.0,1816.9,1.03531752]
[1746088769295,1.10073,1816.7,1816.6,3.2078]
[1746088769500,4.86876934,1816.7,1816.6,3.2078]
[1746088770201,7.38486934,1816.7,1816.6,3.2078]
[1746088773003,1.10079,1816.6,1816.5,3.788]
[1746088773200,2.83752934,1816.6,1816.5,3.788]
[1746088776202,2.75213,1816.5,1816.1,0.8574]
[1746088776397,1.20106934,1816.2,1816.1,2.4577]
[1746088776595,1.20106934,1816.2,1816.1,1.6003]
[1746088777303,1.10109,1816.1,1816.0,6.9958]
[1746088777501,1.20112934,1816.1,1816.0,6.9958]
[1746088777798,6.52052934,1816.1,1816.0,6.9958]
[1746088780804,4.76909,1816.1,1816.0,6.9958]
[1746088782003,1.10109,1816.1,1816.0,6.9958]
[1746088783811,1.20112934,1816.1,1816.0,6.9958]
[1746088784803,3.57502934,1816.1,1816.0,6.9958]
[1746088786301,1.20112934,1816.1,1816.0,6.9958]
[1746088786502,1.10109,1816.1,1816.0,6.9958]
[1746088788406,1.20112934,1816.1,1816.0,6.9958]
[1746088789908,2.81962934,1816.1,1816.0,6.9958]
[1746088798420,3.13976362,1816.1,1816.0,6.9958]
[1746088800726,2.81962934,1816.1,1816.0,6.9958]
[1746088800923,1.20112934,1816.1,1816.0,6.9958]
[1746088805126,2.87102934,1816.1,1816.0,6.9958]
[1746088807226,2.87102934,1816.1,1816.0,3.788]
[1746088809527,2.87102934,1816.1,1816.0,5.5181]
[1746088812328,1.10107,1816.2,1816.0,5.5181]
[1746088812526,1.10107,1816.2,1816.1,4.8788]
[1746088812723,1.10107,1816.2,1816.1,5.6955]
[1746088813624,1.10107,1816.2,1816.1,11.5255]
[1746088813625,1.10103,1816.2,1816.1,11.5255]
[1746088814427,1.10102,1816.3,1816.1,12.62659]
[1746088814624,1.10102,1816.3,1816.2,2.4432]
[1746088815327,1.10102,1816.3,1816.2,6.2312]
[1746088815933,1.10102,1816.3,1816.2,47.0312]
[1746088817434,1.10102,1816.3,1816.2,6.2312]
[1746088817934,3.63955934,1816.3,1816.2,5.4046]
[1746088818122,4.45335934,1816.3,1816.2,3.788]
[1746088822845,4.45335934,1816.3,1816.2,5.4586]
[1746088827648,4.45335934,1816.3,1816.2,3.788]
[1746088831950,8.11935934,1816.3,1816.2,3.788]
[1746088839454,8.11935934,1816.3,1816.2,1.9691]
[1746088839755,8.11935934,1816.3,1816.2,0.527]
[1746088840058,1.10109,1816.1,1816.0,3.2078]
[1746088840259,1.20112934,1816.1,1816.0,3.2078]
[1746088840447,2.87902934,1816.1,1816.0,3.2078]
[1746088841158,2.87902934,1816.1,1816.0,6.9958]
[1746088848062,1.10109,1816.1,1816.0,6.9958]
[1746088848262,4.76409,1816.1,1816.0,6.9958]
[1746088849169,4.86412934,1816.1,1816.0,6.9958]
[1746088849461,6.45982934,1816.1,1816.0,6.9958]
[1746088850355,6.35979,1816.1,1816.0,6.9958]
[1746088850653,6.45982934,1816.1,1816.0,6.9958]
[1746088850854,4.86412934,1816.1,1816.0,6.9958]
[1746088851063,4.76409,1816.1,1816.0,6.9958]
[1746088854068,4.86412934,1816.1,1816.0,6.9958]
[1746088854367,6.55602934,1816.1,1816.0,6.9958]
[1746088855267,4.76409,1816.1,1816.0,6.9958]
[1746088857969,1.10109,1816.1,1816.0,6.9958]
[1746088858161,4.76409,1816.1,1816.0,6.9958]
[1746088859264,1.10109,1816.1,1816.0,8.5903]
[1746088874583,1.10109,1816.1,1816.0,5.3825]
[1746088874775,1.10109,1816.1,1816.0,8.5903]
[1746088876880,1.10109,1816.1,1816.0,10.2779]
[1746088877286,1.89489,1816.1,1816.0,10.2779]
[1746088879087,1.89489,1816.1,1816.0,9.4733]
[1746088879285,3.49679,1816.1,1816.0,9.4733]
[1746088883490,3.49679,1816.1,1816.0,6.2655]
[1746088883690,3.49679,1816.1,1816.0,9.4733]
[1746088884590,3.59682934,1816.1,1816.0,9.4733]
[1746088884889,3.59682934,1816.1,1816.0,8.6834]
[1746088885691,3.59682934,1816.1,1816.0,6.9958]
[1746088889790,3.59682934,1816.1,1816.0,3.788]
[1746088890886,1.20112934,1816.1,1816.0,3.788]
[1746088891281,3.76742934,1816.1,1816.0,3.788]
[1746088891484,3.76742934,1816.1,1816.0,5.488]
[1746088894499,1.20112934,1816.1,1816.0,5.488]
[1746088894697,4.85912934,1816.1,1816.0,5.488]
[1746088894902,5.70462934,1816.1,1816.0,5.488]
[1746088897106,4.85912934,1816.1,1816.0,5.488]
[1746088897403,4.85912934,1816.1,1816.0,8.6958]
[1746088898402,1.20112934,1816.1,1816.0,8.6958]
[1746088898604,4.85212934,1816.1,1816.0,8.6958]
[1746088898999,1.10109,1816.1,1816.0,8.6958]
[1746088899302,2.75244,1816.3,1816.0,8.6958]
[1746088899504,1.20111934,1816.2,1816.1,1.6126]
[1746088899705,1.10108,1816.2,1816.1,7.4426]
[1746088899906,6.78123,1816.5,1816.1,7.4426]
[1746088899907,1.10101,1816.3,1816.1,13.54368]
[1746088900107,1.10096,1816.4,1816.2,7.59293]
[1746088900311,3.651,1816.6,1816.3,1.6126]
[1746088900606,1.10091,1816.4,1816.3,2.71357]
[1746088900804,1.10091,1816.4,1816.3,4.8204]
[1746088901010,1.10091,1816.4,1816.3,9.8204]
[1746088901210,1.10091,1816.4,1816.3,54.4084]
[1746088903110,1.10091,1816.4,1816.3,55.50937]
[1746088905614,1.1009,1816.5,1816.4,1.1009]
[1746088905911,1.1009,1816.5,1816.4,1.7053]
[1746088906110,1.1009,1816.5,1816.4,5.4933]
[1746088907112,1.1009,1816.5,1816.4,6.59421]
[1746088908012,1.1009,1816.5,1816.4,9.80201]
[1746088910016,1.10082,1816.6,1816.5,1.1008]
[1746088910209,1.20085934,1816.6,1816.5,6.5451]
[1746088910408,1.10082,1816.6,1816.5,6.5451]
[1746088913421,1.20085934,1816.6,1816.5,6.5451]
[1746088917423,1.20085934,1816.6,1816.5,5.4443]
[1746088917623,1.20085934,1816.6,1816.5,4.5839]
[1746088917826,2.93035934,1816.6,1816.5,3.788]
[1746088918626,7.93035934,1816.6,1816.5,2.28597]
[1746088918822,7.93035934,1816.6,1816.4,3.97849138]
[1746088918823,1.20088934,1816.5,1816.4,3.97849138]
[1746088919023,4.58928934,1816.5,1816.4,3.97849138]
[1746088919224,9.58928934,1816.5,1816.4,3.97849138]
[1746088920127,9.58928934,1816.5,1816.4,7.76649138]
[1746088921819,4.58928934,1816.5,1816.4,7.76649138]
[1746088922724,4.58928934,1816.5,1816.4,3.788]
[1746088928433,4.58928934,1816.5,1816.4,2.9434]
[1746088928627,4.58928934,1816.5,1816.4,0.8446]
[1746088928934,1.10109,1816.1,1816.0,3.2078]
[1746088929135,4.84512934,1816.1,1816.0,3.2078]
[1746088930025,6.55522934,1816.1,1816.0,3.2078]
[1746088930227,6.55522934,1816.1,1816.0,6.9958]
[1746088930935,6.55522934,1816.1,1816.0,8.7385]
[1746088932342,4.74509,1816.1,1816.0,8.7385]
[1746088932831,3.644,1816.1,1816.0,9.6074]
[1746088933535,4.74501,1816.3,1816.0,9.6074]
[1746088933746,4.84504934,1816.3,1816.1,1.5771]
[1746088933934,4.84504934,1816.3,1816.2,0.8591]
[1746088934125,4.84504934,1816.3,1816.2,4.6471]
[1746088935038,4.84504934,1816.3,1816.2,7.8549]
[1746088935738,4.84504934,1816.3,1816.2,9.432]
[1746088936332,1.20104934,1816.3,1816.2,10.53303]
[1746088936537,3.644,1816.3,1816.2,10.53303]
[1746088937136,4.74497,1816.3,1816.2,10.53303]
[1746088938042,4.74497,1816.3,1816.2,9.432]
[1746088938538,4.74497,1816.3,1816.2,10.53303]
[1746088939639,3.644,1816.3,1816.2,10.53303]
[1746088939840,3.644,1816.3,1816.2,9.432]
[1746088940035,4.74497,1816.3,1816.2,10.53303]
[1746088941538,3.644,1816.3,1816.2,10.53303]
[1746088941842,1.1009,1816.5,1816.4,1.10089]
[1746088942144,6.39598,1816.6,1816.4,3.788]
[1746088942343,4.74479,1816.6,1816.5,2.4549]
[1746088942544,4.84482934,1816.6,1816.5,2.4549]
[1746088942948,6.58922934,1816.6,1816.5,2.4549]
[1746088943244,6.58922934,1816.6,1816.5,6.2429]
[1746088946743,1.91456,1816.7,1816.5,7.34374]
[1746088946950,3.644,1816.7,1816.6,2.84109]
[1746088947244,4.74473,1816.7,1816.6,5.8133]
[1746088947444,1.20076934,1816.7,1816.6,5.8133]
[1746088947645,0.10003934,1816.7,1816.6,6.91409]
[1746088948149,4.4827,1816.8,1816.6,6.91409]
[1746088948348,5.58339,1816.8,1816.7,1.5903]
[1746088948752,5.68342934,1816.8,1816.7,1.5903]
[1746088949249,5.68342934,1816.8,1816.7,5.3783]
[1746088952146,10.68342934,1816.8,1816.7,3.788]
[1746088952346,11.54262934,1816.8,1816.7,3.788]
[1746088952645,13.25162934,1816.8,1816.7,3.788]
[1746088952952,8.25162934,1816.8,1816.7,3.788]
[1746088953252,1.10079,1816.6,1816.5,1.6834]
[1746088953754,1.20082934,1816.6,1816.5,1.6834]
[1746088954352,1.10085,1816.5,1816.4,10.97429138]
[1746088954553,3.64798934,1816.5,1816.4,10.97429138]
[1746088964862,4.44378934,1816.5,1816.4,10.97429138]
[1746088966165,2.85268934,1816.5,1816.4,10.97429138]
[1746088966365,2.85268934,1816.5,1816.4,12.61069138]
[1746088969668,4.57218934,1816.5,1816.4,8.6322]
[1746088970367,4.47215,1816.5,1816.4,8.6322]
[1746088970561,4.57218934,1816.5,1816.4,8.6322]
[1746088970866,2.05688934,1816.5,1816.4,8.6322]
[1746088972868,1.10085,1816.5,1816.4,8.6322]
[1746088975262,1.20088934,1816.5,1816.4,8.6322]
[1746088976070,2.82238934,1816.5,1816.4,8.6322]
[1746088977274,2.82238934,1816.5,1816.4,6.9958]
[1746088979575,2.82238934,1816.5,1816.4,3.788]
[1746088979874,2.82238934,1816.5,1816.4,6.9958]
[1746088980870,6.45938934,1816.5,1816.4,3.788]
[1746088981079,1.10097,1816.3,1816.2,3.2078]
[1746088981276,1.20100934,1816.3,1816.2,3.2078]
[1746088981576,2.90870934,1816.3,1816.2,3.2078]
[1746088984778,2.90870934,1816.3,1816.0,0.8323]
[1746088984779,5.50535,1816.2,1816.0,3.2078]
[1746088984971,8.09422934,1816.1,1816.0,3.2078]
[1746088988283,8.09422934,1816.1,1816.0,6.9958]
[1746088988478,2.75242,1816.4,1816.0,6.9958]
[1746088988681,1.20106934,1816.2,1816.1,3.3198]
[1746088989082,1.10103,1816.2,1816.1,3.3198]
[1746088990177,1.10103,1816.2,1816.1,2.5308]
[1746088990375,2.84446934,1816.2,1816.1,1.671]
[1746089003798,1.10109,1816.1,1816.0,6.9958]
[1746089003991,3.72942934,1816.1,1816.0,6.9958]
[1746089021607,3.72942934,1816.1,1816.0,3.788]
[1746089021809,3.72942934,1816.1,1816.0,6.9958]
[1746089023010,3.72942934,1816.1,1816.0,3.788]
[1746089023204,1.10115,1816.0,1815.9,1.6956]
[1746089023411,7.31858934,1816.0,1815.9,1.6956]
[1746089026823,1.10115,1816.0,1815.9,1.6956]
[1746089027015,1.10115,1816.0,1815.9,6.6956]
[1746089027220,1.10115,1816.0,1815.9,10.4836]
[1746089028426,1.10115,1816.0,1815.9,5.4836]
[1746089029827,3.3467,1816.3,1815.9,11.58477]
[1746089029828,1.10111,1816.1,1815.9,11.58477]
[1746089030025,1.10111,1816.1,1816.0,5.5995]
[1746089030423,1.10111,1816.1,1816.0,46.3995]
[1746089031323,1.10111,1816.1,1816.0,50.1875]
[1746089035630,1.20114934,1816.1,1816.0,8.5756]
[1746089042038,1.10111,1816.1,1816.0,9.67675]
[1746089043437,1.10111,1816.1,1816.0,6.46895]
[1746089043737,1.10111,1816.1,1816.0,8.5756]
[1746089044330,3.77164934,1816.1,1816.0,5.3678]
[1746089044533,4.64304934,1816.1,1816.0,5.3678]
[1746089044736,4.64304934,1816.1,1816.0,3.788]
[1746089048142,1.10115,1816.0,1815.9,3.2078]
[1746089048332,2.88498934,1816.0,1815.9,3.2078]
[1746089049142,2.88498934,1816.0,1815.9,6.9958]
[1746089050142,2.88498934,1816.0,1815.9,3.788]
[1746089050342,2.88498934,1816.0,1815.9,6.9958]
[1746089052840,2.88498934,1816.0,1815.9,3.788]
[1746089056145,2.98208116,1816.0,1815.9,3.788]
[1746089058641,2.98207952,1816.0,1815.9,3.788]
[1746089058844,5.50658,1815.8,1815.5,3.2078]
[1746089059036,1.10152,1815.4,1815.3,4.9066]
[1746089059636,1.95682,1815.4,1815.3,4.9066]
[1746089059942,5.57482,1815.4,1815.3,4.9066]
[1746089060149,5.57482,1815.4,1815.3,8.6946]
[1746089060348,6.38622,1815.4,1815.3,8.6946]
[1746089060649,6.58338442,1815.4,1815.3,3.788]
[1746089061142,1.10164,1815.2,1815.1,12.24557492]
[1746089061342,1.20167934,1815.2,1815.1,12.24557492]
[1746089062442,1.20167934,1815.2,1815.1,4.9066]
[1746089062749,2.80437934,1815.2,1815.1,4.9066]
[1746089064746,1.20167934,1815.2,1815.1,4.9066]
[1746089066052,1.10164,1815.2,1815.1,4.9066]
[1746089076261,1.20167934,1815.2,1815.1,4.9066]
[1746089077458,1.10164,1815.2,1815.1,4.9066]
[1746089085576,1.20167934,1815.2,1815.1,4.9066]
[1746089085778,3.76347934,1815.2,1815.1,4.9066]
[1746089086472,3.76347934,1815.2,1815.1,3.2078]
[1746089086875,1.92104,1815.2,1815.1,4.8012]
[1746089087076,1.10164,1815.2,1815.1,4.8012]
[1746089088281,1.20167934,1815.2,1815.1,4.8012]
[1746089088481,2.92417934,1815.2,1815.1,4.8012]
[1746089091379,2.92417934,1815.2,1815.1,2.01387]
[1746089091582,1.10206,1814.5,1814.4,1.5858]
[1746089091773,1.20204934,1814.6,1814.4,5.89571]
[1746089091973,1.20204934,1814.6,1814.5,2.3834]
[1746089091974,1.10201,1814.6,1814.5,2.3834]
[1746089092173,1.10201,1814.6,1814.5,6.1714]
[1746089093076,3.614,1814.8,1814.5,11.1714]
[1746089093276,1.10195,1814.7,1814.6,2.4025]
[1746089093476,1.10195,1814.7,1814.6,6.7123]
[1746089093981,3.614,1814.8,1814.6,5.6103]
[1746089094188,4.71588,1814.8,1814.7,1.5858]
[1746089095084,4.71588,1814.8,1814.7,5.3738]
[1746089095979,1.10188,1814.8,1814.7,5.3738]
[1746089099385,1.10188,1814.8,1814.7,6.47574]
[1746089100387,1.10188,1814.8,1814.7,5.3738]
[1746089101291,1.10188,1814.8,1814.7,6.47574]
[1746089104391,1.10186,1814.9,1814.8,1.10183]
[1746089104591,1.20189934,1814.9,1814.8,2.5016]
[1746089104791,1.10186,1814.9,1814.8,2.5016]
[1746089104983,1.10186,1814.9,1814.8,3.60348]
[1746089105180,1.10186,1814.9,1814.8,6.2896]
[1746089105692,1.10186,1814.9,1814.8,7.39148]
[1746089106192,1.10181,1815.0,1814.9,1.10178]
[1746089106394,1.20184934,1815.0,1814.9,3.61628]
[1746089107090,1.20184934,1815.0,1814.9,7.40428]
[1746089107291,1.20184934,1815.0,1814.9,6.3025]
[1746089107494,3.66264934,1815.0,1814.9,6.3025]
[1746089107688,3.66264934,1815.0,1814.9,3.788]
[1746089109192,3.66264934,1815.0,1814.9,4.88982]
[1746089109397,4.39933019,1815.0,1814.9,5.3757]
[1746089109597,4.39933019,1815.0,1814.9,6.47752]
[1746089109797,4.39933019,1815.0,1814.9,5.3757]
[1746089110094,1.93853019,1815.0,1814.9,7.30762]
[1746089110396,2.03130538,1815.0,1814.9,8.15362]
[1746089110785,0.92949538,1815.0,1814.9,8.15362]
[1746089110990,2.03125538,1815.0,1814.9,8.15362]
[1746089111184,0.82945604,1815.0,1814.9,8.15362]
[1746089111496,0.82945604,1815.0,1814.9,13.98362]
[1746089111891,0.10003934,1815.2,1815.1,1.10167]
[1746089112098,1.10171,1815.2,1815.1,1.96278047]
[1746089112298,1.10171,1815.2,1815.1,3.63778047]
[1746089116903,1.10171,1815.2,1815.1,2.77667]
[1746089117097,1.10171,1815.2,1815.1,3.63770042]
[1746089118002,1.10156,1815.4,1815.3,1.10152]
[1746089118195,1.10156,1815.4,1815.3,11.58052439]
[1746089118395,1.10156,1815.4,1815.3,13.21292439]
[1746089119092,1.96241,1815.5,1815.4,1.10152]
[1746089119296,8.8229,1815.6,1815.4,6.82602439]
[1746089119297,0.8462,1815.6,1815.4,6.82602439]
[1746089119497,0.8462,1815.6,1815.5,3.57615439]
[1746089119800,1.94759,1815.6,1815.5,5.23185439]
[1746089120001,1.10139,1815.6,1815.5,5.23185439]
[1746089120202,1.10139,1815.6,1815.5,9.01985439]
[1746089120503,1.10139,1815.6,1815.5,49.81985439]
[1746089121894,0.60044014,1815.7,1815.5,47.10470439]
[1746089122203,1.10133,1815.7,1815.6,0.86100439]
[1746089122798,7.79343,1815.7,1815.6,0.86100439]
[1746089125807,1.10139,1815.6,1815.5,3.788]
[1746089125991,7.14889,1815.6,1815.5,4.6489704]
[1746089127899,6.0475,1815.6,1815.5,4.6489704]
[1746089128105,6.92782918,1815.6,1815.5,4.6489704]
[1746089128813,1.10136,1815.7,1815.5,4.6489704]
[1746089129106,1.10136,1815.7,1815.6,3.3091704]
[1746089131903,6.0613,1815.8,1815.6,3.3091704]
[1746089132105,6.50142378,1815.8,1815.7,2.5758704]
[1746089133207,6.50142378,1815.8,1815.7,6.3638704]
[1746089134008,9.19469051,1815.9,1815.7,6.3638704]
[1746089134305,9.19469051,1815.9,1815.8,6.7467404]
[1746089134508,9.19469051,1815.9,1815.8,7.5501404]
[1746089134700,9.19469051,1815.9,1815.8,48.3501404]
[1746089135106,9.19469051,1815.9,1815.8,52.1381404]
[1746089135308,1.10117,1816.0,1815.9,1.10121]
[1746089135510,1.10115,1816.0,1815.9,2.7683304]
[1746089135708,1.10115,1816.0,1815.9,4.3450304]
[1746089136110,16.98160287,1816.2,1815.9,8.1330304]
[1746089136316,1.10109,1816.1,1816.0,5.6454704]
[1746089136512,1.10109,1816.1,1816.0,4.0687704]
[1746089136704,1.10109,1816.1,1816.0,4.06846909]
[1746089137211,1.10109,1816.1,1816.0,4.64866909]
[1746089139510,2.69909,1816.1,1816.0,4.64866909]
[1746089139910,2.69909,1816.1,1816.0,3.788]
[1746089140410,2.69909,1816.1,1816.0,4.64878872]
[1746089141299,6.30309,1816.1,1816.0,4.64878872]
[1746089141506,11.30309,1816.1,1816.0,4.64878872]
[1746089141911,10.202,1816.1,1816.0,4.64878872]
[1746089142210,10.641944,1816.1,1816.0,4.64878872]
[1746089142712,13.849744,1816.1,1816.0,4.64878872]
[1746089143011,13.849744,1816.1,1816.0,4.64886777]
[1746089143313,13.849744,1816.1,1816.0,0.86086777]
[1746089144012,12.52739277,1816.1,1816.0,0.86086777]
[1746089146910,7.52739277,1816.1,1816.0,0.86086777]
[1746089148119,12.52739277,1816.1,1816.0,0.86086777]
[1746089149116,12.52739277,1816.1,1815.5,0.8412]
[1746089149117,1.10139,1815.6,1815.5,0.8412]